[Event "Late-Titled-Tuesday-Blitz-January-30-2024"]
[Site "Chess.com"]
[Date "2024.01.30"]
[Round "3"]
[White "jaskol95"]
[Black "Harsha_Bharathakoti"]
[Result "0-1"]
[WhiteElo "2535"]
[BlackElo "2909"]
[TimeControl "180+1"]
[EndTime "14:27:45 PST"]
[Termination "Harsha_Bharathakoti won by checkmate"]

1. e4 {[%clk 0:03:00.9]} 1... g6 {[%clk 0:02:59.1]} 2. d4 {[%clk 0:02:59.1]}
2... Bg7 {[%clk 0:02:59.8]} 3. Nf3 {[%clk 0:02:58.5]} 3... d6 {[%clk 0:03:00.2]}
4. Nc3 {[%clk 0:02:57.6]} 4... a6 {[%clk 0:03:00.2]} 5. a4 {[%clk 0:02:57.5]}
5... Nc6 {[%clk 0:02:59.2]} 6. Be3 {[%clk 0:02:57.3]} 6... Bg4 {[%clk
0:02:58.9]} 7. Be2 {[%clk 0:02:56.5]} 7... Nf6 {[%clk 0:02:54]} 8. h3 {[%clk
0:02:56]} 8... Bxf3 {[%clk 0:02:53.8]} 9. Bxf3 {[%clk 0:02:56.9]} 9... e5 {[%clk
0:02:54.3]} 10. Ne2 {[%clk 0:02:52.9]} 10... O-O {[%clk 0:02:51.2]} 11. c3
{[%clk 0:02:53]} 11... exd4 {[%clk 0:02:48.2]} 12. cxd4 {[%clk 0:02:49.1]} 12...
Re8 {[%clk 0:02:47]} 13. Nc3 {[%clk 0:02:49.6]} 13... a5 {[%clk 0:02:41.4]} 14.
O-O {[%clk 0:02:48.9]} 14... Nb4 {[%clk 0:02:42.2]} 15. e5 {[%clk 0:02:28.6]}
15... dxe5 {[%clk 0:02:40.5]} 16. Bxb7 {[%clk 0:02:28.2]} 16... Rb8 {[%clk
0:02:33.7]} 17. Bf3 {[%clk 0:02:28.4]} 17... e4 {[%clk 0:02:16.3]} 18. Be2
{[%clk 0:02:28.5]} 18... Nfd5 {[%clk 0:02:16.2]} 19. Bc4 {[%clk 0:02:24.8]}
19... c6 {[%clk 0:02:08.8]} 20. Qd2 {[%clk 0:02:20.4]} 20... Qb6 {[%clk
0:01:47.4]} 21. Rad1 {[%clk 0:02:08.3]} 21... Rbd8 {[%clk 0:01:48]} 22. Nxd5
{[%clk 0:01:55.5]} 22... cxd5 {[%clk 0:01:48.9]} 23. Bb5 {[%clk 0:01:55.6]}
23... Re7 {[%clk 0:01:46.8]} 24. Rc1 {[%clk 0:01:52.1]} 24... f5 {[%clk
0:01:23.5]} 25. Bg5 {[%clk 0:01:37.5]} 25... Bf6 {[%clk 0:01:23.3]} 26. Bxf6
{[%clk 0:01:08.2]} 26... Qxf6 {[%clk 0:01:23.5]} 27. Rc5 {[%clk 0:01:08.7]}
27... f4 {[%clk 0:01:22.6]} 28. Rfc1 {[%clk 0:01:00.8]} 28... e3 {[%clk
0:01:21.4]} 29. fxe3 {[%clk 0:00:45.5]} 29... fxe3 {[%clk 0:01:22.3]} 30. Qe2
{[%clk 0:00:45.7]} 30... Qxd4 {[%clk 0:01:13.8]} 31. Rc8 {[%clk 0:00:46.4]}
31... Rxc8 {[%clk 0:01:13.9]} 32. Rxc8+ {[%clk 0:00:47.3]} 32... Kg7 {[%clk
0:01:14.5]} 33. Kh1 {[%clk 0:00:37.4]} 33... Qf4 {[%clk 0:01:02.1]} 34. b3
{[%clk 0:00:31.6]} 34... d4 {[%clk 0:01:01.9]} 35. Qc4 {[%clk 0:00:28.8]} 35...
e2 {[%clk 0:00:57]} 36. Qg8+ {[%clk 0:00:15.5]} 36... Kh6 {[%clk 0:00:57.3]} 37.
Bxe2 {[%clk 0:00:15.3]} 37... Rxe2 {[%clk 0:00:58.2]} 38. Re8 {[%clk 0:00:09.3]}
38... Qf1+ {[%clk 0:00:58.1]} 39. Kh2 {[%clk 0:00:09.2]} 39... Qxg2# {[%clk
0:00:59]} 0-1

[Event "Late-Titled-Tuesday-Blitz-January-30-2024"]
[Site "Chess.com"]
[Date "2024.01.30"]
[Round "3"]
[White "GMKrikor"]
[Black "FairChess_on_YouTube"]
[Result "0-1"]
[WhiteElo "2811"]
[BlackElo "3089"]
[TimeControl "180+1"]
[EndTime "14:27:48 PST"]
[Termination "FairChess_on_YouTube won on time"]

1. Nf3 {[%clk 0:03:00.9]} 1... d5 {[%clk 0:03:00.3]} 2. c4 {[%clk 0:03:00.6]}
2... e6 {[%clk 0:02:57.8]} 3. d4 {[%clk 0:03:00.4]} 3... a6 {[%clk 0:02:57.3]}
4. cxd5 {[%clk 0:02:56.5]} 4... exd5 {[%clk 0:02:58.2]} 5. Nc3 {[%clk
0:02:56.6]} 5... Nf6 {[%clk 0:02:58.5]} 6. Bf4 {[%clk 0:02:56.2]} 6... Bd6
{[%clk 0:02:57.7]} 7. Bxd6 {[%clk 0:02:56.5]} 7... Qxd6 {[%clk 0:02:58.2]} 8. e3
{[%clk 0:02:57.4]} 8... c6 {[%clk 0:02:55.1]} 9. Bd3 {[%clk 0:02:46.3]} 9...
Nbd7 {[%clk 0:02:54.9]} 10. O-O {[%clk 0:02:43.7]} 10... O-O {[%clk 0:02:55.1]}
11. Qc2 {[%clk 0:02:42.9]} 11... Re8 {[%clk 0:02:55.1]} 12. Rab1 {[%clk
0:02:42.9]} 12... Nf8 {[%clk 0:02:54.7]} 13. Ne5 {[%clk 0:02:34.7]} 13... Ng6
{[%clk 0:02:54.8]} 14. f4 {[%clk 0:02:19.3]} 14... c5 {[%clk 0:02:54.6]} 15. h3
{[%clk 0:02:09.7]} 15... c4 {[%clk 0:02:49.5]} 16. Be2 {[%clk 0:01:57.5]} 16...
b5 {[%clk 0:02:49.6]} 17. b4 {[%clk 0:01:49.5]} 17... Bd7 {[%clk 0:02:42.9]} 18.
Bf3 {[%clk 0:01:46.4]} 18... a5 {[%clk 0:02:42.6]} 19. Qb2 {[%clk 0:01:35.2]}
19... Bf5 {[%clk 0:02:38.8]} 20. Nxb5 {[%clk 0:01:31.4]} 20... Qb8 {[%clk
0:02:36.6]} 21. Nc3 {[%clk 0:00:58.7]} 21... Bxb1 {[%clk 0:02:34]} 22. Rxb1
{[%clk 0:00:59.6]} 22... axb4 {[%clk 0:02:19.5]} 23. Qxb4 {[%clk 0:01:00.5]}
23... Ne7 {[%clk 0:02:12.8]} 24. Qc5 {[%clk 0:00:46.2]} 24... Qa7 {[%clk
0:02:12.6]} 25. Qxa7 {[%clk 0:00:43]} 25... Rxa7 {[%clk 0:02:13.5]} 26. a4
{[%clk 0:00:43.4]} 26... g6 {[%clk 0:02:01.2]} 27. Kf2 {[%clk 0:00:42.4]} 27...
Rd8 {[%clk 0:01:41.3]} 28. g4 {[%clk 0:00:42.7]} 28... Ne8 {[%clk 0:01:39.9]}
29. g5 {[%clk 0:00:35.8]} 29... Nc7 {[%clk 0:01:40]} 30. h4 {[%clk 0:00:33.7]}
30... Raa8 {[%clk 0:01:23.7]} 31. Rb6 {[%clk 0:00:09.1]} 31... Rab8 {[%clk
0:01:16.4]} 32. a5 {[%clk 0:00:08.9]} 32... Rxb6 {[%clk 0:01:05.2]} 33. axb6
{[%clk 0:00:08.7]} 33... Na6 {[%clk 0:01:05.8]} 34. b7 {[%clk 0:00:04.2]} 34...
Nc7 {[%clk 0:01:05.4]} 35. Bg4 {[%clk 0:00:02.9]} 35... Rb8 {[%clk 0:01:03.9]}
0-1

[Event "Late-Titled-Tuesday-Blitz-January-30-2024"]
[Site "Chess.com"]
[Date "2024.01.30"]
[Round "3"]
[White "picturesquecheck"]
[Black "shirovin"]
[Result "1-0"]
[WhiteElo "2349"]
[BlackElo "2047"]
[TimeControl "180+1"]
[EndTime "14:27:48 PST"]
[Termination "picturesquecheck won on time"]

1. e4 {[%clk 0:03:00.9]} 1... c5 {[%clk 0:02:59.1]} 2. d4 {[%clk 0:02:58.9]}
2... cxd4 {[%clk 0:02:58.2]} 3. c3 {[%clk 0:02:59.5]} 3... dxc3 {[%clk
0:02:57.3]} 4. Nxc3 {[%clk 0:03:00.4]} 4... Nc6 {[%clk 0:02:56]} 5. Nf3 {[%clk
0:03:00.4]} 5... e6 {[%clk 0:02:56.2]} 6. Bb5 {[%clk 0:02:58.3]} 6... Qc7 {[%clk
0:02:48.3]} 7. O-O {[%clk 0:02:57.3]} 7... Nf6 {[%clk 0:02:47.7]} 8. Bg5 {[%clk
0:02:49.2]} 8... Be7 {[%clk 0:02:32.6]} 9. Rc1 {[%clk 0:02:47.6]} 9... a6 {[%clk
0:02:27.1]} 10. Ba4 {[%clk 0:02:28.4]} 10... O-O {[%clk 0:02:23.7]} 11. e5
{[%clk 0:02:15.2]} 11... Nxe5 {[%clk 0:01:59.8]} 12. Nd5 {[%clk 0:01:55.6]}
12... Nxf3+ {[%clk 0:01:58.7]} 13. Qxf3 {[%clk 0:01:54]} 13... Qd8 {[%clk
0:01:58.1]} 14. Nc7 {[%clk 0:01:06.6]} 14... Rb8 {[%clk 0:01:55.9]} 15. Rfd1
{[%clk 0:01:02.2]} 15... b5 {[%clk 0:01:50.8]} 16. Bb3 {[%clk 0:01:02.3]} 16...
Rb7 {[%clk 0:01:42]} 17. Bf4 {[%clk 0:01:02]} 17... d6 {[%clk 0:01:36.3]} 18.
Nxa6 {[%clk 0:01:01.7]} 18... Qb6 {[%clk 0:01:09.9]} 19. Nb4 {[%clk 0:00:58.8]}
19... e5 {[%clk 0:01:09.1]} 20. Be3 {[%clk 0:00:58.4]} 20... Qd8 {[%clk
0:00:54.7]} 21. Bg5 {[%clk 0:00:56.5]} 21... Bd7 {[%clk 0:00:38.3]} 22. Qxb7
{[%clk 0:00:55]} 22... h6 {[%clk 0:00:20.1]} 23. Bh4 {[%clk 0:00:52.3]} 23...
Ng4 {[%clk 0:00:16.2]} 24. Bxe7 {[%clk 0:00:50.4]} 24... Qxe7 {[%clk 0:00:16.3]}
25. h3 {[%clk 0:00:46.5]} 25... Nf6 {[%clk 0:00:11.3]} 26. Nd5 {[%clk
0:00:46.5]} 26... Nxd5 {[%clk 0:00:10.3]} 27. Qxd5 {[%clk 0:00:47.4]} 27... Kh8
{[%clk 0:00:02.4]} 28. Qxd6 {[%clk 0:00:47.3]} 28... Qxd6 {[%clk 0:00:01.7]} 29.
Rxd6 {[%clk 0:00:48.2]} 29... Bf5 {[%clk 0:00:01.8]} 30. Rc5 {[%clk 0:00:47.4]}
1-0

[Event "Late-Titled-Tuesday-Blitz-January-30-2024"]
[Site "Chess.com"]
[Date "2024.01.30"]
[Round "3"]
[White "aistrel"]
[Black "tarno17"]
[Result "0-1"]
[WhiteElo "2528"]
[BlackElo "2106"]
[TimeControl "180+1"]
[EndTime "14:27:52 PST"]
[Termination "tarno17 won by resignation"]

1. d4 {[%clk 0:02:59.3]} 1... d5 {[%clk 0:02:59.8]} 2. Bf4 {[%clk 0:02:58.6]}
2... Nf6 {[%clk 0:02:57.3]} 3. e3 {[%clk 0:02:59.2]} 3... e6 {[%clk 0:02:56.8]}
4. Nc3 {[%clk 0:02:58.6]} 4... b6 {[%clk 0:02:48.8]} 5. Nb5 {[%clk 0:02:57.5]}
5... Na6 {[%clk 0:02:38.6]} 6. Nf3 {[%clk 0:02:52]} 6... c6 {[%clk 0:02:34.2]}
7. Nc3 {[%clk 0:02:48.9]} 7... Bd6 {[%clk 0:02:34.4]} 8. Ne5 {[%clk 0:02:47.8]}
8... Bxe5 {[%clk 0:02:23.2]} 9. Bxe5 {[%clk 0:02:44.3]} 9... O-O {[%clk
0:02:21.3]} 10. Qf3 {[%clk 0:02:41.4]} 10... Nb4 {[%clk 0:02:16.5]} 11. O-O-O
{[%clk 0:02:40.6]} 11... c5 {[%clk 0:02:10.5]} 12. dxc5 {[%clk 0:02:30.2]} 12...
bxc5 {[%clk 0:02:11.4]} 13. Bxf6 {[%clk 0:02:27.3]} 13... Qxf6 {[%clk
0:02:04.2]} 14. Qxf6 {[%clk 0:02:26.6]} 14... gxf6 {[%clk 0:02:05.1]} 15. Bb5
{[%clk 0:02:25.2]} 15... a6 {[%clk 0:02:02.6]} 16. Ba4 {[%clk 0:02:24.1]} 16...
Bb7 {[%clk 0:01:49.3]} 17. a3 {[%clk 0:02:22.8]} 17... Nc6 {[%clk 0:01:45.8]}
18. Bxc6 {[%clk 0:02:22.6]} 18... Bxc6 {[%clk 0:01:43.8]} 19. Ne2 {[%clk
0:02:23.5]} 19... Rab8 {[%clk 0:01:29.4]} 20. Rhg1 {[%clk 0:02:22]} 20... Rb7
{[%clk 0:01:18.8]} 21. g4 {[%clk 0:02:22.3]} 21... Rfb8 {[%clk 0:01:16.2]} 22.
b3 {[%clk 0:02:22.5]} 22... c4 {[%clk 0:01:13.3]} 23. b4 {[%clk 0:02:21]} 23...
a5 {[%clk 0:01:12.6]} 24. c3 {[%clk 0:02:21.3]} 24... axb4 {[%clk 0:01:11.7]}
25. axb4 {[%clk 0:02:21.9]} 25... Ra8 {[%clk 0:00:57.5]} 26. Kb2 {[%clk
0:02:21.2]} 26... Kg7 {[%clk 0:00:23.5]} 27. Nd4 {[%clk 0:02:20.4]} 27... Bd7
{[%clk 0:00:22.2]} 28. Ra1 {[%clk 0:02:19.9]} 28... Rba7 {[%clk 0:00:18.2]} 29.
f4 {[%clk 0:02:19]} 29... e5 {[%clk 0:00:16.3]} 30. Nf5+ {[%clk 0:02:14.7]}
30... Bxf5 {[%clk 0:00:15.7]} 31. gxf5+ {[%clk 0:02:15.6]} 31... Kh6 {[%clk
0:00:14.3]} 32. Rxa7 {[%clk 0:02:12.9]} 32... Rxa7 {[%clk 0:00:14.5]} 33. Rg3
{[%clk 0:01:59.3]} 33... Kh5 {[%clk 0:00:11.4]} 34. Rg7 {[%clk 0:01:58.6]} 34...
exf4 {[%clk 0:00:02.7]} 35. exf4 {[%clk 0:01:56.4]} 35... Re7 {[%clk 0:00:02.5]}
36. h3 {[%clk 0:01:55.8]} 36... Kh4 {[%clk 0:00:02.9]} 37. Rxh7+ {[%clk
0:01:54.6]} 37... Kg3 {[%clk 0:00:03.7]} 38. b5 {[%clk 0:01:51.4]} 38... Kxf4
{[%clk 0:00:04.3]} 39. Ka3 {[%clk 0:01:51.1]} 39... Kxf5 {[%clk 0:00:04.5]} 40.
Kb4 {[%clk 0:01:51.4]} 40... Ke4 {[%clk 0:00:04.9]} 41. b6 {[%clk 0:01:51]}
41... f5 {[%clk 0:00:05.4]} 42. Kc5 {[%clk 0:01:44.3]} 42... f4 {[%clk
0:00:05.1]} 43. Kd6 {[%clk 0:01:44.8]} 43... Rb7 {[%clk 0:00:04.7]} 44. Kc6
{[%clk 0:01:44.3]} 44... Re7 {[%clk 0:00:04.7]} 45. b7 {[%clk 0:01:44.7]} 45...
Re8 {[%clk 0:00:03.8]} 46. Rxf7 {[%clk 0:01:44.1]} 46... f3 {[%clk 0:00:03.8]}
47. Re7+ {[%clk 0:01:37.6]} 47... Rxe7 {[%clk 0:00:02.4]} 48. b8=Q {[%clk
0:01:38.2]} 48... Re5 {[%clk 0:00:01.1]} 49. Qb6 {[%clk 0:01:31]} 49... Re6+
{[%clk 0:00:01.2]} 50. Kc5 {[%clk 0:01:31.3]} 50... Rxb6 {[%clk 0:00:02.1]} 51.
Kxb6 {[%clk 0:01:32.2]} 51... f2 {[%clk 0:00:02.4]} 0-1

[Event "Late-Titled-Tuesday-Blitz-January-30-2024"]
[Site "Chess.com"]
[Date "2024.01.30"]
[Round "3"]
[White "Binary010"]
[Black "Zura_19"]
[Result "1-0"]
[WhiteElo "2911"]
[BlackElo "2535"]
[TimeControl "180+1"]
[EndTime "14:27:53 PST"]
[Termination "Binary010 won by resignation"]

1. c4 {[%clk 0:03:00.9]} 1... f5 {[%clk 0:02:56.5]} 2. Nf3 {[%clk 0:02:57.6]}
2... Nf6 {[%clk 0:02:56.3]} 3. g3 {[%clk 0:02:57.9]} 3... g6 {[%clk 0:02:56.5]}
4. Bg2 {[%clk 0:02:58.3]} 4... Bg7 {[%clk 0:02:57.1]} 5. O-O {[%clk 0:02:58.9]}
5... O-O {[%clk 0:02:57.5]} 6. d4 {[%clk 0:02:59.5]} 6... d6 {[%clk 0:02:57.7]}
7. Nc3 {[%clk 0:02:58.3]} 7... c6 {[%clk 0:02:56.7]} 8. Qc2 {[%clk 0:02:53.3]}
8... Qe8 {[%clk 0:02:49.2]} 9. d5 {[%clk 0:02:43.5]} 9... e5 {[%clk 0:02:24.3]}
10. dxe6 {[%clk 0:02:41.6]} 10... Bxe6 {[%clk 0:02:24.4]} 11. Bf4 {[%clk
0:02:41]} 11... Qe7 {[%clk 0:01:54.9]} 12. Rad1 {[%clk 0:02:38.6]} 12... Rd8
{[%clk 0:01:51.9]} 13. b3 {[%clk 0:02:38.1]} 13... Na6 {[%clk 0:01:50.6]} 14. e4
{[%clk 0:02:30.5]} 14... fxe4 {[%clk 0:01:38.4]} 15. Nxe4 {[%clk 0:02:30.4]}
15... Bf5 {[%clk 0:01:26.9]} 16. Nxf6+ {[%clk 0:02:24.9]} 16... Qxf6 {[%clk
0:01:27.8]} 17. Qd2 {[%clk 0:02:22.1]} 17... Nc5 {[%clk 0:01:23.3]} 18. Bg5
{[%clk 0:02:08.5]} 18... Qf7 {[%clk 0:01:02.7]} 19. Bxd8 {[%clk 0:02:07.6]}
19... Rxd8 {[%clk 0:01:03.6]} 20. Nh4 {[%clk 0:01:51.3]} 20... Be4 {[%clk
0:00:58.4]} 21. Rfe1 {[%clk 0:01:45.3]} 21... Bxg2 {[%clk 0:00:56.3]} 22. Nxg2
{[%clk 0:01:44.7]} 22... d5 {[%clk 0:00:50.8]} 23. Nf4 {[%clk 0:01:37]} 23... d4
{[%clk 0:00:44.1]} 24. b4 {[%clk 0:01:35.5]} 24... g5 {[%clk 0:00:34.7]} 25. Nh3
{[%clk 0:01:34.6]} 25... Ne6 {[%clk 0:00:16.1]} 26. Nxg5 {[%clk 0:01:34.4]}
26... Nxg5 {[%clk 0:00:16.4]} 27. Qxg5 {[%clk 0:01:35.3]} 27... Rf8 {[%clk
0:00:16.9]} 28. f4 {[%clk 0:01:32.9]} 28... Qxc4 {[%clk 0:00:16.4]} 29. Re7
{[%clk 0:01:28.9]} 29... Rf7 {[%clk 0:00:16.6]} 30. Re8+ {[%clk 0:01:02.8]}
30... Rf8 {[%clk 0:00:16.4]} 31. Rxf8+ {[%clk 0:01:03.2]} 31... Kxf8 {[%clk
0:00:16.7]} 32. Qf5+ {[%clk 0:01:04]} 32... Kg8 {[%clk 0:00:13.6]} 33. Re1
{[%clk 0:01:02.8]} 33... Qf7 {[%clk 0:00:10.7]} 34. Qxf7+ {[%clk 0:00:57.4]}
34... Kxf7 {[%clk 0:00:11.6]} 35. Kf2 {[%clk 0:00:56.9]} 35... Bf8 {[%clk
0:00:11.8]} 36. a3 {[%clk 0:00:56.1]} 36... b6 {[%clk 0:00:09.9]} 37. Ke2 {[%clk
0:00:56.1]} 37... c5 {[%clk 0:00:08.9]} 38. bxc5 {[%clk 0:00:56.5]} 38... Bxc5
{[%clk 0:00:07.6]} 39. a4 {[%clk 0:00:56.1]} 1-0

[Event "Late-Titled-Tuesday-Blitz-January-30-2024"]
[Site "Chess.com"]
[Date "2024.01.30"]
[Round "3"]
[White "lupta_robin"]
[Black "Elprofessor21"]
[Result "1-0"]
[WhiteElo "2520"]
[BlackElo "2670"]
[TimeControl "180+1"]
[EndTime "14:27:59 PST"]
[Termination "lupta_robin won by resignation"]

1. c4 {[%clk 0:03:00.9]} 1... b6 {[%clk 0:02:58.8]} 2. d4 {[%clk 0:03:00.1]}
2... Bb7 {[%clk 0:02:59.3]} 3. Nc3 {[%clk 0:03:00.6]} 3... g6 {[%clk 0:02:59.4]}
4. e4 {[%clk 0:03:00.1]} 4... Bg7 {[%clk 0:02:59.9]} 5. Nf3 {[%clk 0:03:00.4]}
5... d6 {[%clk 0:02:59.4]} 6. Be2 {[%clk 0:02:57.8]} 6... Nf6 {[%clk 0:02:59.8]}
7. d5 {[%clk 0:02:53.9]} 7... O-O {[%clk 0:02:59.6]} 8. Be3 {[%clk 0:02:53]}
8... Ng4 {[%clk 0:02:56.7]} 9. Bd4 {[%clk 0:02:40.4]} 9... Ne5 {[%clk
0:02:48.8]} 10. Nxe5 {[%clk 0:02:36.2]} 10... dxe5 {[%clk 0:02:49]} 11. Be3
{[%clk 0:02:36.6]} 11... f5 {[%clk 0:02:46.9]} 12. f3 {[%clk 0:02:36]} 12... f4
{[%clk 0:02:40]} 13. Bf2 {[%clk 0:02:35.3]} 13... Nd7 {[%clk 0:02:39.5]} 14. b4
{[%clk 0:02:30.8]} 14... a5 {[%clk 0:02:39.3]} 15. a3 {[%clk 0:02:30.7]} 15...
Nf6 {[%clk 0:02:31.3]} 16. c5 {[%clk 0:02:25.7]} 16... Kh8 {[%clk 0:02:28.5]}
17. O-O {[%clk 0:02:18.2]} 17... g5 {[%clk 0:02:27.3]} 18. h3 {[%clk 0:02:18]}
18... h5 {[%clk 0:02:27]} 19. cxb6 {[%clk 0:02:10]} 19... cxb6 {[%clk
0:02:25.8]} 20. bxa5 {[%clk 0:02:02.6]} 20... bxa5 {[%clk 0:02:24.8]} 21. Rb1
{[%clk 0:01:54.4]} 21... Bc8 {[%clk 0:02:23.9]} 22. Na4 {[%clk 0:01:47.9]} 22...
g4 {[%clk 0:02:23]} 23. Nb6 {[%clk 0:01:45.7]} 23... Rb8 {[%clk 0:02:16.5]} 24.
Nxc8 {[%clk 0:01:45.8]} 24... Rxb1 {[%clk 0:02:15]} 25. Qxb1 {[%clk 0:01:44.1]}
25... Qxc8 {[%clk 0:02:15.5]} 26. hxg4 {[%clk 0:01:41.1]} 26... hxg4 {[%clk
0:02:15.4]} 27. Rc1 {[%clk 0:01:41.8]} 27... Qe8 {[%clk 0:02:10.7]} 28. fxg4
{[%clk 0:01:34.9]} 28... Qg6 {[%clk 0:02:10.5]} 29. Rc3 {[%clk 0:01:27.8]} 29...
Nxg4 {[%clk 0:01:55.3]} 30. Rh3+ {[%clk 0:01:26.8]} 30... Kg8 {[%clk 0:01:55.5]}
31. d6 {[%clk 0:01:16.3]} 31... Nxf2 {[%clk 0:01:49.3]} 32. Bc4+ {[%clk
0:01:14.1]} 32... e6 {[%clk 0:01:48.4]} 33. Kxf2 {[%clk 0:01:14.3]} 33... Rd8
{[%clk 0:01:24.4]} 34. Qb3 {[%clk 0:01:09.7]} 34... Rxd6 {[%clk 0:01:21.9]} 35.
Qb8+ {[%clk 0:01:08.8]} 35... Bf8 {[%clk 0:01:22.4]} 36. Rh8+ {[%clk 0:01:09.1]}
36... Kxh8 {[%clk 0:01:22.4]} 37. Qxf8+ {[%clk 0:01:09.4]} 37... Kh7 {[%clk
0:01:23.1]} 38. Qxd6 {[%clk 0:01:10.1]} 38... Qg3+ {[%clk 0:01:23.4]} 39. Kf1
{[%clk 0:01:02.2]} 39... f3 {[%clk 0:01:23.5]} 40. Qe7+ {[%clk 0:00:59.2]} 40...
Kh8 {[%clk 0:01:19.4]} 41. Qf6+ {[%clk 0:00:57.6]} 41... Kh7 {[%clk 0:01:19.5]}
42. Qxf3 {[%clk 0:00:57.2]} 42... Qg5 {[%clk 0:01:19.2]} 43. Be2 {[%clk
0:00:52]} 43... Qc1+ {[%clk 0:01:18.2]} 44. Kf2 {[%clk 0:00:52.4]} 44... a4
{[%clk 0:01:09.6]} 45. Qe3 {[%clk 0:00:51.8]} 45... Qb1 {[%clk 0:00:58.4]} 46.
Bg4 {[%clk 0:00:51.3]} 46... Qb2+ {[%clk 0:00:56.5]} 47. Kf3 {[%clk 0:00:49.5]}
47... Qb3 {[%clk 0:00:45.3]} 48. Qxb3 {[%clk 0:00:49.1]} 48... axb3 {[%clk
0:00:45.1]} 49. Bxe6 {[%clk 0:00:49.8]} 49... b2 {[%clk 0:00:46]} 50. Ba2 {[%clk
0:00:50.1]} 1-0

[Event "Late-Titled-Tuesday-Blitz-January-30-2024"]
[Site "Chess.com"]
[Date "2024.01.30"]
[Round "3"]
[White "TheAlienParty"]
[Black "ChessSwole"]
[Result "0-1"]
[WhiteElo "2385"]
[BlackElo "2582"]
[TimeControl "180+1"]
[EndTime "14:27:59 PST"]
[Termination "ChessSwole won by checkmate"]

1. c4 {[%clk 0:02:58.2]} 1... g6 {[%clk 0:02:56]} 2. Nf3 {[%clk 0:02:56.4]} 2...
Bg7 {[%clk 0:02:56.5]} 3. g3 {[%clk 0:02:56.4]} 3... e6 {[%clk 0:02:57]} 4. Bg2
{[%clk 0:02:54.7]} 4... Ne7 {[%clk 0:02:57.5]} 5. h4 {[%clk 0:02:54.5]} 5... h6
{[%clk 0:02:56.4]} 6. h5 {[%clk 0:02:54.6]} 6... g5 {[%clk 0:02:56.7]} 7. d4
{[%clk 0:02:54.1]} 7... d5 {[%clk 0:02:55.9]} 8. b3 {[%clk 0:02:48]} 8... dxc4
{[%clk 0:02:55.1]} 9. bxc4 {[%clk 0:02:47.7]} 9... c5 {[%clk 0:02:55.8]} 10. Bb2
{[%clk 0:02:43.8]} 10... Nbc6 {[%clk 0:02:55.3]} 11. e3 {[%clk 0:02:40.6]} 11...
Qb6 {[%clk 0:02:48.7]} 12. Qd2 {[%clk 0:02:31.5]} 12... cxd4 {[%clk 0:02:37.3]}
13. Nxd4 {[%clk 0:02:25.6]} 13... O-O {[%clk 0:02:25.2]} 14. Bc3 {[%clk
0:01:48.5]} 14... Rd8 {[%clk 0:02:20.5]} 15. f4 {[%clk 0:01:20.6]} 15... Nxd4
{[%clk 0:02:13.1]} 16. Bxd4 {[%clk 0:01:17.5]} 16... Bxd4 {[%clk 0:02:11.1]} 17.
exd4 {[%clk 0:01:17.5]} 17... Rxd4 {[%clk 0:02:11.6]} 18. Qc3 {[%clk 0:01:13.1]}
18... gxf4 {[%clk 0:01:53.1]} 19. a3 {[%clk 0:01:06.8]} 19... Nf5 {[%clk
0:01:46.5]} 20. c5 {[%clk 0:01:04.2]} 20... Qd8 {[%clk 0:01:35.6]} 21. gxf4
{[%clk 0:00:57.1]} 21... Rd3 {[%clk 0:01:32.7]} 22. Qb2 {[%clk 0:00:44.4]} 22...
Re3+ {[%clk 0:01:03.5]} 23. Kf2 {[%clk 0:00:41.6]} 23... Qc7 {[%clk 0:00:55.8]}
24. Rh4 {[%clk 0:00:30.6]} 24... Nxh4 {[%clk 0:00:38.2]} 25. Kxe3 {[%clk
0:00:29.7]} 25... Qxc5+ {[%clk 0:00:38.5]} 26. Kd3 {[%clk 0:00:18.8]} 26... Bd7
{[%clk 0:00:33.8]} 27. Bxb7 {[%clk 0:00:04.1]} 27... Bb5+ {[%clk 0:00:33.1]} 28.
Ke4 {[%clk 0:00:03.4]} 28... f5# {[%clk 0:00:30]} 0-1

[Event "Late-Titled-Tuesday-Blitz-January-30-2024"]
[Site "Chess.com"]
[Date "2024.01.30"]
[Round "3"]
[White "Eduard_Limonov"]
[Black "DeTimmerman"]
[Result "1-0"]
[WhiteElo "2882"]
[BlackElo "2680"]
[TimeControl "180+1"]
[EndTime "14:28:01 PST"]
[Termination "Eduard_Limonov won by resignation"]

1. e4 {[%clk 0:03:00.9]} 1... e5 {[%clk 0:02:57.8]} 2. Nf3 {[%clk 0:03:00.9]}
2... Nc6 {[%clk 0:02:57]} 3. Nc3 {[%clk 0:02:59.3]} 3... Nf6 {[%clk 0:02:56.7]}
4. Be2 {[%clk 0:02:59.9]} 4... Be7 {[%clk 0:02:41.6]} 5. d4 {[%clk 0:02:59.4]}
5... d6 {[%clk 0:02:40.1]} 6. d5 {[%clk 0:02:58.6]} 6... Nb8 {[%clk 0:02:36.2]}
7. a4 {[%clk 0:02:59]} 7... O-O {[%clk 0:02:33.9]} 8. O-O {[%clk 0:02:57.5]}
8... c6 {[%clk 0:02:32]} 9. Nd2 {[%clk 0:02:46.3]} 9... cxd5 {[%clk 0:02:30.3]}
10. exd5 {[%clk 0:02:46.3]} 10... Na6 {[%clk 0:02:30.6]} 11. Nc4 {[%clk
0:02:42.4]} 11... Nc7 {[%clk 0:02:29.6]} 12. f4 {[%clk 0:02:33.9]} 12... exf4
{[%clk 0:02:06.9]} 13. Bxf4 {[%clk 0:02:34.8]} 13... b6 {[%clk 0:02:07.1]} 14.
Qd4 {[%clk 0:02:15.1]} 14... Bb7 {[%clk 0:02:03.3]} 15. Bf3 {[%clk 0:02:14.9]}
15... Qd7 {[%clk 0:01:58.1]} 16. Rae1 {[%clk 0:02:07.8]} 16... Rfe8 {[%clk
0:01:57.9]} 17. h3 {[%clk 0:01:54.5]} 17... Rad8 {[%clk 0:01:55.4]} 18. Ne3
{[%clk 0:01:47.1]} 18... Na6 {[%clk 0:01:40.7]} 19. b4 {[%clk 0:01:18.3]} 19...
Rc8 {[%clk 0:01:40.7]} 20. Nb5 {[%clk 0:01:18.3]} 20... Ba8 {[%clk 0:01:32.2]}
21. c3 {[%clk 0:01:12]} 21... Rcd8 {[%clk 0:01:14]} 22. Nc4 {[%clk 0:00:57.1]}
22... Nc7 {[%clk 0:01:12.5]} 23. Nxc7 {[%clk 0:00:40.8]} 23... Qxc7 {[%clk
0:01:13.4]} 24. Ne3 {[%clk 0:00:39.7]} 24... Bb7 {[%clk 0:01:00.1]} 25. Nf5
{[%clk 0:00:35.9]} 25... Bc8 {[%clk 0:01:00.3]} 26. Nxe7+ {[%clk 0:00:33.5]}
26... Rxe7 {[%clk 0:01:01.2]} 27. Bg5 {[%clk 0:00:34]} 27... Rde8 {[%clk
0:00:56]} 28. Rxe7 {[%clk 0:00:30.8]} 28... Qxe7 {[%clk 0:00:56.9]} 29. c4
{[%clk 0:00:21.6]} 29... Qe5 {[%clk 0:00:54.5]} 30. Qxe5 {[%clk 0:00:21.1]}
30... dxe5 {[%clk 0:00:54.2]} 31. Bxf6 {[%clk 0:00:18.9]} 31... gxf6 {[%clk
0:00:55.1]} 32. c5 {[%clk 0:00:19.6]} 32... e4 {[%clk 0:00:53.9]} 33. Be2 {[%clk
0:00:19.6]} 33... bxc5 {[%clk 0:00:54.1]} 34. bxc5 {[%clk 0:00:20.5]} 34... f5
{[%clk 0:00:54.7]} 35. d6 {[%clk 0:00:17.9]} 35... Bd7 {[%clk 0:00:53.2]} 36.
Bb5 {[%clk 0:00:17.9]} 36... Rd8 {[%clk 0:00:49.2]} 37. Bxd7 {[%clk 0:00:17.6]}
37... Rxd7 {[%clk 0:00:50.1]} 38. Rd1 {[%clk 0:00:16.5]} 38... e3 {[%clk
0:00:50.6]} 39. Kf1 {[%clk 0:00:16.8]} 39... Rb7 {[%clk 0:00:47.7]} 40. d7
{[%clk 0:00:16.6]} 1-0